Cogmind - Beta 14 @@@ ROGUE MODE // 2024.11.06 @ 21:49:08 Player: MrMistersen Result: Destroyed by YC-6G7(R) with Subdweller Laser Performance ------------- Evolutions (0) 0 Regions Visited (3) 600 Robots Destroyed (24) 120 Value Destroyed (325) 325 Prototype IDs (0) 0 Alien Tech Used (0) 0 Bonus (0) 0 TOTAL SCORE: 1045 Bonus ------- None Cogmind --------- Core Integrity 0/250 Matter 96/300 Energy 100/100 System Corruption 1% Temperature Cool (6) Movement Core (50) Location -10/Subcaves Parts ------- > --- POWER (1) -------- (None) > --- PROPULSION (2) --- (None) > --- UTILITY (2) ------ (None) > --- WEAPON (2) ------- (None) > --- INVENTORY (5) ---- Aluminum Leg Aluminum Leg Grenade Launcher Peak State ------------ > --- POWER ------------ Improved Ion Engine > --- PROPULSION ------- Improved Treads Improved Treads > --- UTILITY ---------- Medium Storage Unit Improved Terrain Scanner > --- WEAPON ----------- Light Assault Rifle Heavy Assault Rifle > --- INVENTORY -------- Aluminum Leg Aluminum Leg Medium Storage Unit Medium Battery Weight Redist. System Transport Network Coupler ECM Suite Grenade Launcher Mining Laser Mining Laser [Rating: 14] Favorites ----------- Power Improved Ion Engine Engine Improved Ion Engine Propulsion Improved Treads Treads Improved Treads Leg Aluminum Leg Utility Medium Storage Unit Device Improved Terrain Scanner Storage Medium Storage Unit Protection Hardened Light Armor Plating Weapon Light Assault Rifle Energy Gun Medium Laser Ballistic Gun Light Assault Rifle Launcher Grenade Launcher Special Weapon Mining Laser Build | -11 -10 -10 -10 ------- Run | Yrd Mat Min Sub Slots Evolved . | . . . . Power . | . . . . Propulsion . | . . . . Utility . | . . . . Weapon . | . . . . Parts Attached 46 | 6 19 15 6 Power 4 | 1 1 2 . Engine 4 | 1 1 2 . Core . | . . . . Reactor . | . . . . Propulsion 9 | 2 7 . . Treads 7 | 2 5 . . Leg 2 | . 2 . . Wheel . | . . . . Hover . | . . . . Flight . | . . . . Utility 10 | 1 6 1 2 Device 4 | . 3 1 . Storage 4 | 1 2 . 1 Processor . | . . . . Hackware . | . . . . Protection 2 | . 1 . 1 Artifact . | . . . . Weapon 23 | 2 5 12 4 Energy Gun 1 | 1 . . . Energy Cannon . | . . . . Ballistic Gun 15 | 1 5 7 2 Ballistic Cannon . | . . . . Launcher 1 | . . 1 . Special Weapon 6 | . . 4 2 Impact Weapon . | . . . . Slashing Weapon . | . . . . Piercing Weapon . | . . . . Special Melee Weapon . | . . . . Unidentified Prototypes . | . . . . Parts Lost 8 | . . 1 7 Power 2 | . . 1 1 Propulsion 2 | . . . 2 Utility 2 | . . . 2 Weapon 2 | . . . 2 Highest Loss Streak 7 | . . 1 7 To Critical Strikes . | . . . . Average Slot Usage (%) 99 | . 99 100 98 Engine 14 | . 14 14 14 Treads 27 | . 28 28 27 Device 12 | . 11 14 13 Storage 11 | . 8 14 13 Protection 3 | . 7 . . Energy Gun 1 | . 2 . . Ballistic Gun 18 | . 25 12 8 Special Weapon 7 | . . 14 19 Peak Build Rating 14 | 6 13 14 12 Average Rating 11 | 4 11 12 11 On Entrance 7 | . 6 13 12 Naked Turns 1 | . . . 1 Heaviest Build 96 | 12 96 22 16 Greatest Support 52 | 40 52 52 46 Greatest Overweight (x) 2 | 2 2 . . Average Overweight (x) . | . . . . Largest Inventory Capacity 25 | 8 25 10 10 Average Capacity 9 | 7 9 10 9 Most Carried 12 | 3 12 10 10 Average Carried 7 | . 6 9 9 Final Capacity 10 | 8 10 10 5 Final Carried 10 | 1 10 10 3 Class Distribution -------------------- 89% | Mutant 10% | Scavenger-Mutant Dominant Class ---------------- Mutant | -10/Materials Mutant | -10/Mines Mutant | -10/Subcaves Resources | -11 -10 -10 -10 ----------- Run | Yrd Mat Min Sub Matter Collected 725 | 260 241 224 . Remotely . | . . . . Salvage Created 489 | . 216 185 88 Parts 61 | . 24 28 9 Haulers Intercepted 1 | . 1 . . Recyclers Shooed . | . . . . Parts Field Recycled . | . . . . Retrieved Matter . | . . . . Parts Self-Destructed 1 | . . . 1 Prevented . | . . . . Kills | -11 -10 -10 -10 ------- Run | Yrd Mat Min Sub Combat Hostiles Destroyed 20 | . 6 12 2 Guns 17 | . 6 9 2 AOE 3 | . . 3 . Classes Destroyed 6 | . 4 1 1 Tunneler 1 | . . 1 . Hauler 1 | . 1 . . Watcher 2 | . 2 . . Swarmer 17 | . 5 12 . Grunt 1 | . 1 . . Subdweller 2 | . . . 2 Best Kill Streak 4 | . 3 4 2 Combat Bots Only 3 | . 3 3 2 Max Kills in Single Turn 3 | . 1 3 1 Gunslinging 1 | . . 1 . Exploded 3 | . . 3 . Melee . | . . . . Uniques/NPCs Destroyed . | . . . . Combat | -11 -10 -10 -10 -------- Run | Yrd Mat Min Sub Hostile Shots Fired 174 | . 61 68 45 Missed 42 | . 17 18 7 Damage Taken 1709 | . 461 405 843 Core 256 | . 23 44 189 Absorbed by Shields . | . . . . Core Remaining (%) 100 | 100 . . . Volleys Fired 79 | . 34 33 12 Largest 2 | . 2 2 2 Hottest 200 | . 70 200 200 Shots Fired 155 | . 68 67 20 Gun 126 | . 68 46 12 Cannon . | . . . . Launcher 1 | . . 1 . Special 28 | . . 20 8 Kinetic 121 | . 63 46 12 Thermal 33 | . 5 20 8 Explosive 1 | . . 1 . Electromagnetic . | . . . . Robot Hit Streak 7 | . 6 4 7 Robot Miss Streak 6 | . 6 6 1 Penetration Max . | . . . . Secondary Targets 2 | . . 2 . Max Gunslinging Chain 1 | . . 1 . Shots Hit Robots 65 | . 35 19 11 Core Hits 36 | . 14 16 6 Critical Kills . | . . . . Critical Parts Destroyed 1 | . 1 . . Critical Strikes 1 | . 1 . . Destroy 1 | . 1 . . Melee Attacks . | . . . . Impact . | . . . . Slashing . | . . . . Piercing . | . . . . Sneak Attacks . | . . . . Combat Hostiles . | . . . . Follow-up Attacks . | . . . . Damage Inflicted 808 | . 411 304 93 Guns 708 | . 408 207 93 Cannons . | . . . . Explosions 97 | . . 97 . Melee . | . . . . Ramming 3 | . 3 . . Kinetic 672 | . 372 207 93 Thermal 36 | . 36 . . Explosive 97 | . . 97 . Electromagnetic . | . . . . Impact . | . . . . Slashing . | . . . . Piercing . | . . . . Highest Corruption 1 | . 1 1 1 Average Corruption 1 | . 1 1 1 Corruption Purged . | . . . . Corruption Blocked . | . . . . Effects 9 | . 4 4 1 Message Errors 2 | . 1 1 . Matter Fused 5 | . 3 1 1 Data Loss (minor) 1 | . . 1 . Misfires 1 | . . 1 . Overload Shots . | . . . . Overflow Damage . | . . . . Projectiles . | . . . . Explosions . | . . . . Melee . | . . . . Knockbacks . | . . . . Impact . | . . . . Kinetic . | . . . . Secondary . | . . . . Self-Inflicted Damage 14 | . . 14 . Shots 1 | . . 1 . Rammed 1 | . 1 . . Targets Rammed 1 | . 1 . . Kicked . | . . . . Crushed . | . . . . Highest Temperature 339 | . 138 339 . Average Temperature 78 | . 40 107 . Received Heat Transfer 324 | . 162 . 162 Effects 3 | . . 3 . Shutdowns 1 | . . 1 . Energy Bleed 1 | . . 1 . Matter Decay 1 | . . 1 . Siege Activations . | . . . . Robots Corrupted . | . . . . Combat Hostiles . | . . . . Parts Fried . | . . . . Impact Corruptions . | . . . . Robots Melted . | . . . . Combat Hostiles . | . . . . Parts Melted . | . . . . Heat Transferred 111 | . 111 . . Parts Sabotaged . | . . . . Parts Stolen . | . . . . Parts Stripped . | . . . . Power Chain Reactions . | . . . . Alert | -11 -10 -10 -10 ------- Run | Yrd Mat Min Sub Peak Influence 195 | . 195 170 . Initial 5 | . . 5 . Average 67 | . 59 84 . Maximum Alert Level . | . . . . Low Security (%) 100 | 100 100 100 . Level 1 . | . . . . Level 2 . | . . . . Level 3 . | . . . . Level 4 . | . . . . Level 5 . | . . . . High Security . | . . . . Max Security . | . . . . Squads Dispatched . | . . . . Investigation . | . . . . Extermination . | . . . . Reinforcement . | . . . . Assault . | . . . . Garrison . | . . . . Intercept . | . . . . Searches Triggered . | . . . . Construction Impeded . | . . . . Haulers Reinforced . | . . . . Active Scanning Responses . | . . . . Cargo Convoy Interrupts . | . . . . Stealth | -11 -10 -10 -10 --------- Run | Yrd Mat Min Sub Distress Signals 1 | . 1 . . Communications Jammed . | . . . . Distress Signals . | . . . . Times Spotted 39 | . 19 12 8 Peak Tracking Total 8 | . 3 3 8 Tactical Retreats 4 | . 3 1 . Traps | -11 -10 -10 -10 ------- Run | Yrd Mat Min Sub Traps Triggered 2 | . 2 . . Indirectly . | . . . . Trap Hack Attempts . | . . . . Triggered . | . . . . Disarmed . | . . . . Reprogrammed . | . . . . Reused . | . . . . Traps Extracted . | . . . . Installed . | . . . . Triggered . | . . . . Machines | -11 -10 -10 -10 ---------- Run | Yrd Mat Min Sub Machines Disabled . | . . . . Max in Single Turn . | . . . . Machines Repaired . | . . . . Machines Dismantled . | . . . . Machines Sabotaged . | . . . . Overloaded Fab Kills . | . . . . Hacking | -11 -10 -10 -10 --------- Run | Yrd Mat Min Sub Machines Accessed 2 | . 2 . . Terminals 2 | . 2 . . Fabricators . | . . . . Repair Stations . | . . . . Recycling Units . | . . . . Scanalyzers . | . . . . Garrison Access . | . . . . Total Hacks 5 | . 5 . . Successful 3 | . 3 . . Failed 2 | . 2 . . Catastrophic . | . . . . Database Lockouts . | . . . . Manual . | . . . . Terminals 5 | . 5 . . Fabricators . | . . . . Repair Stations . | . . . . Recycling Units . | . . . . Scanalyzers . | . . . . Garrison Access . | . . . . Terminal Hacks 3 | . 3 . . Terminal Index 1 | . 1 . . Maintenance Status 1 | . 1 . . Zone Layout 1 | . 1 . . Fabricator Hacks . | . . . . Repair Station Hacks . | . . . . Recycling Unit Hacks . | . . . . Scanalyzer . | . . . . Garrison Access Hacks . | . . . . Unauthorized Hacks . | . . . . Terminals . | . . . . Fabricators . | . . . . Repair Stations . | . . . . Recycling Units . | . . . . Scanalyzers . | . . . . Garrison Access . | . . . . Data Cores Recovered . | . . . . Used . | . . . . Hacking Detections 1 | . 1 . . Full Trace Events . | . . . . Feedback Events . | . . . . Feedback Blocked . | . . . . Robot Schematics Acquired . | . . . . Robots Built . | . . . . Authchips . | . . . . Time . | . . . . Total Robot Build Rating . | . . . . Part Schematics Acquired . | . . . . Parts Built . | . . . . Authchips . | . . . . Time . | . . . . Total Part Build Rating . | . . . . Parts Repaired . | . . . . Time . | . . . . Parts Recycled . | . . . . Recycled Matter . | . . . . Retrieved Matter . | . . . . Retrieved Components . | . . . . Parts Scanalyzed . | . . . . Part Schematics Acquired . | . . . . Parts Damaged . | . . . . Bothacking | -11 -10 -10 -10 ------------ Run | Yrd Mat Min Sub Used RIF Installer . | . . . . Robots Hacked . | . . . . Non-combat . | . . . . Combat . | . . . . Robot Hacks Applied . | . . . . Relay Couplers Released . | . . . . Fabnet Peak Effective % . | . . . . Robots Rewired . | . . . . Allies Hacked . | . . . . Hacks Repelled . | . . . . Allies | -11 -10 -10 -10 -------- Run | Yrd Mat Min Sub Total Allies . | . . . . Largest Group . | . . . . Highest-Rated Group . | . . . . Highest-Rated Ally . | . . . . Total Orders . | . . . . Ally Attacks . | . . . . Total Damage . | . . . . Kills . | . . . . Allies Corrupted . | . . . . Allies Melted . | . . . . Intel | -11 -10 -10 -10 ------- Run | Yrd Mat Min Sub Robot Analysis Total . | . . . . Derelict Logs Recovered 1 | . . 1 . Drone Launches . | . . . . Drone Recoveries . | . . . . Exploration | -11 -10 -10 -10 ------------- Run | Yrd Mat Min Sub Turns Passed 2018 | 78 952 747 241 Spaces Moved 1003 | 44 477 369 113 Core 5 | 5 . . . Treads 998 | 39 477 369 113 Legs . | . . . . Wheels . | . . . . Hover . | . . . . Flight . | . . . . Fastest Speed 50 | 50 160 160 160 Average Speed 162 | 150 166 160 160 Slowest Speed 320 | 160 320 160 160 Overloaded Moves . | . . . . Propulsion Burnouts . | . . . . Robots Hopped . | . . . . Cave-ins Triggered . | . . . . Exploration Rate (%) 34 | 4 76 50 8 Regions Visited 3 Branch Regions 2 Pre-discovered Areas 1 | . . 1 . Known Exits Taken . | . . . . Unknown Exits Taken 3 | 1 1 1 . Scrap Searched 1 | . . 1 . Spaces Dug 6 | . . 6 . Terrain Destroyed 15 | . . 15 . Melee . | . . . . Projectile 7 | . . 7 . AOE 8 | . . 8 . Terrain Rammed . | . . . . Walls Destroyed . | . . . . Machines Disabled . | . . . . Actions | -11 -10 -10 -10 --------- Run | Yrd Mat Min Sub Total 1190 | 56 569 424 141 Wait 1 | . . . 1 Move 1000 | 43 476 368 113 Hop . | . . . . Pick Up 33 | 7 23 2 1 Fast Attach 3 | . 2 1 . Attach 10 | 6 2 1 1 Detach . | . . . . Swap 33 | . 15 13 5 Drop 30 | . 16 6 8 Fire 79 | . 34 33 12 Melee . | . . . . Ram . | . . . . Kick . | . . . . Crush 1 | . 1 . . Escape Stasis . | . . . . Rewire . | . . . . Trap . | . . . . Miscellaneous . | . . . . Route ------- -11/Scrapyard -10/Materials (discovered 3 exits: [*Mat x2] / [*Min]) -10/Mines -10/Subcaves History --------- Turn | Location | Event 8 | -11/Scrapyard | Discovered new exit (range 14) 79 | -11/Scrapyard | Entered Materials 301 | -10/Materials | Build established: Mutant 491 | -10/Materials | Discovered new exit (range 8) 753 | -10/Materials | Discovered new exit (range 4) 924 | -10/Materials | Discovered new exit (range 6) 1031 | -10/Materials | Entered Mines 1131 | -10/Mines | Discovered new exit (range 5) 1415 | -10/Mines | Learned location of Storage (-8) 1778 | -10/Mines | Entered Subcaves 1985 | -10/Subcaves | Ambushed by swarm of Subdwellers 1987 | -10/Subcaves | Ambushed by Subdwellers from Twisted Machinery 1987 | -10/Subcaves | Ambushed by Subdwellers from Twisted Machinery 2007 | -10/Subcaves | Core integrity fell below 50% 2018 | -10/Subcaves | Core integrity fell below 20% 2019 | -10/Subcaves | Destroyed by YC-6G7(R) with Subdweller Laser Last Messages --------------- 3L-E0R(R) emerges from the Twisted Machinery. AU-ZZK(h) destroyed. DH-68O(R) emerges from the Twisted Machinery. 4O-IWZ(R) destroyed. Imp. Terrain Scanner destroyed. Dropped Med. Battery. Dropped Weight Redist. System. Dropped ECM Suite. Imp. Treads destroyed. Dropped Mining Laser. Dropped Med. Storage Unit. NU-U3Z(R) destroyed. Lgt. Ion Engine destroyed. Lgt. Assault Rifle destroyed. 39-L7F(R) destroyed. Scrap Shield destroyed. YC-6G7(R) affixes Scrap Shield Fragment to Scrap Shield. Imp. Treads destroyed. Lgt. Assault Rifle destroyed. Map ----- +----------------------------------------------------+ | | | | | | | | | | | | | | | | | ?????????????????????????????????????????????????? | | ??????????????????#?#????????????????????????????? | | ???????????????????????????????#?????????????????? | | ?????????????????????????????????????????????????? | | ???????????????????????????????#?????????????????? | | ?????????????????????????????????????????????????? | | ?????????????????????????????????????????????????? | | ?????????????????????????????????????????????????? | | ?????????????????????????????#???????????????????? | | ??????????????????????#??????????????????????????? | | ?????????????????????????????????????????????????? | | ?????????????????????????????#???????????????????? | | ?????????????????#??????#??#??????#??????????????? | | ??????????????#???????#?#????????????????????????? | | ???????????????????????###???????????????????????? | | ????????????????####??##R#######?#???????????????? | | ??????????????### ###|![!!*![###???????????????? | | ?????????????## ##@&!%R* #???????????????? | | ?????????????# ##R&R## ##??????#??????? | | ???????#?????# "" =[!R!### ##??????????????? | | ??????????? ""# %%!|&=#??###???????????????? | | ??????????? ####*!![!=##??#????##??????????? | | ??????????? ??#?###% ##??#???#???????????? | | ?????????? ###????###### #??#?#??????????#??? | | ??????????? ?#??#??## #??# #???#??###???????##? | | ???????????????#?### #??# ##????## ##????????? | | ???????????#???### ##### ##?### ##?#?#???? | | ???????????#??## ### ### #??##???? | | ??????????????# ## #???????? | | ??????????????#### #???????#? | | ?????????????????## ## ##?????#?# | | ??????????????##?## ## #### #???????? | | ??????????????# ## ## #### ##?#?????? | | ????????????#?# ## ### #????????? | | ??????????????# #### #????????? | | ??????????????## ##### ##?#??#??? | | ??????????? ???### #?# ##????????? | | ?????????????????##### ## ## ####?#???????? | | ????????????????????# ## ####???#??#?????? | | ???????????????????# ## # #???????#??#???? | | ??????????????????? #?### #??????????????? | | ???????????????????????###### #???#?????#????? | +----------------------------------------------------+ Best States ------------- Heat Dissipation 25 Energy Generation 12 Energy Capacity 265 Matter Stores 300 Matter Capacity 300 Sight Range 16 Terrain Scan Range 16 Terrain Scan Density 10 ECM Strength 1 Additional Mass Support 6 Armor Coverage 800 Evasion (%) 40 Recoil Reduction 2 Item Schematics ----------------- None Robot Schematics ------------------ None Fabricated ------------ Nothing Alien Tech Used ----------------- None Achievements -------------- Maybe Next Time I'll Detach My Launcher Challenges ------------ None Game ------ Seed HellfireWardroneCapacitor Manual? 0 Play Time 00:27:05 Cumulative 2.7 hours Start 2024.11.06 @ 21:09:24 End 2024.11.06 @ 21:49:08 Sessions 1 Manual Loads 0 Difficulty Rogue Special Mode None Game No. 5 Rogue 5 Adventurer 0 Explorer 0 Win Type - Total 0 Types 0/0/0/0/0/0/0/0/0 Lore% 0 Gallery% 6 Achievement% 5 Wizard Run 0 Options --------- Layout 1 ASCII 0 Keyboard 0 Movement Mouse Keybinds 0 Fullscreen 2 Font 24/Proggy Map View 50x35 Zoom Use 0% Tactical HUD 0 Map Filters NONE Filters NONE Steam 1 RUN: f474a227-f774-4c41-9417-5fa5ec6cdfeb